fUSD/lending_fUSD_20240630
["ID","MTS","AMOUNT","RATE_DAILY","PERIOD"]
[330710584,1719721845846,-38254.79245144,0.0002,2]
[330710586,1719721845855,-997.1,0.0002,2]
[330710589,1719721845864,-997.1,0.000201,2]
[330710592,1719721845873,-150.0,0.00020187,2]
[330710594,1719721845882,-203.82456511,0.00020321,2]
[330710595,1719721845891,-1000.0,0.00020378,2]
[330710597,1719721845900,-200.0,0.000205,2]
[330710599,1719721845910,-2000.0,0.000205,2]
[330710600,1719721845919,-324.0,0.000205,2]
[330710601,1719721845927,-762.0,0.000205,2]
[330710602,1719721845936,-182.14,0.00020504,2]
[330710603,1719721845945,-266.22,0.00020515,2]
[330710605,1719721845954,-859.84,0.00020515,2]
[330710607,1719721845963,-528.11,0.00020515,2]
[330710609,1719721845974,-301.55,0.00020515,2]
[330710611,1719721845983,-359.03,0.00020515,2]
[330710613,1719721845993,-197.0,0.0002059,2]
[330710615,1719721846001,-460.08405914,0.00020638,4]
[330710617,1719721846010,-152.87389622,0.00020638,4]
[330710618,1719721846019,-171.79974561,0.00020638,4]
[330710620,1719721846028,-150.0,0.00020638,4]
[330710622,1719721846037,-199.49989626,0.00020638,4]
[330710624,1719721846046,-150.0,0.00020638,4]
[330710626,1719721846055,-150.0,0.00020638,4]
[330710628,1719721846065,-150.0,0.00020638,4]
[330710630,1719721846074,-150.0,0.00020638,4]
[330710632,1719721846083,-150.0,0.00020638,4]
[330710634,1719721846092,-150.0,0.00020638,4]
[330710636,1719721846101,-616.72,0.0002065,2]
[330710638,1719721846111,-460.08405914,0.00020661,4]
[330710640,1719721846120,-152.87389622,0.00020661,4]
[330710642,1719721846129,-199.49989626,0.00020661,4]
[330710644,1719721846138,-460.08405914,0.00020684,4]
[330710646,1719721846147,-152.87389622,0.00020684,4]
[330710648,1719721846157,-199.49989626,0.00020684,4]
[330710650,1719721846166,-150.0,0.00020692,2]
[330710652,1719721846175,-460.08405914,0.00020707,4]
[330710654,1719721846184,-152.87389622,0.00020707,4]
[330710656,1719721846193,-199.49989626,0.00020707,4]
[330710658,1719721846202,-150.0,0.0002071,4]
[330710660,1719721846211,-1019.52907429,0.00020711,2]
[330710662,1719721846221,-460.08405914,0.00020731,4]
[330710664,1719721846230,-152.87389622,0.00020731,4]
[330710666,1719721846239,-199.49989626,0.00020731,4]
[330710668,1719721846248,-150.0,0.00020747,4]
[330710670,1719721846257,-460.08405914,0.00020754,4]
[330710672,1719721846267,-152.87389622,0.00020754,4]
[330710674,1719721846276,-199.49989626,0.00020754,4]
[330710676,1719721846285,-460.08405914,0.00020777,4]
[330710678,1719721846294,-152.87389622,0.00020777,4]
[330710680,1719721846303,-199.49989626,0.00020777,4]
[330710682,1719721846317,-150.0,0.00020781,4]
[330710684,1719721846327,-2500.0,0.000208,2]
[330710686,1719721846336,-151.0,0.000208,2]
[330710688,1719721846345,-396651.04554046,0.000208,3]
[330710691,1719721846360,-15734.20194805,0.000208,3]
[330710696,1719721846401,-1000.0,0.000208,3]
[330710699,1719721846417,-19476.06212115,0.000208,3]
[330710701,1719721846429,-31543.62233501,0.000208,3]
[330710704,1719721846446,-270.00257877,0.000208,3]
[330710706,1719721846458,-486.64475688,0.000208,3]
[330710724,1719721846721,-1963.95623651,0.000208,3]
[330710726,1719721846734,-98177.70827517,0.000208,3]
[330710727,1719721846744,-460.08405914,0.000208,4]
[330710729,1719721846756,-152.87389622,0.000208,4]
[330710730,1719721846766,-199.49989626,0.000208,4]
[330710731,1719721846775,-460.08405914,0.00020823,4]
[330710732,1719721846786,-152.87389622,0.00020823,4]
[330710733,1719721846797,-199.49989626,0.00020823,4]
[330710734,1719721846807,-460.08405914,0.00020846,4]
[330710735,1719721846819,-152.87389622,0.00020846,4]
[330710736,1719721846829,-199.49989626,0.00020846,4]
[330710737,1719721846840,-150.0,0.00020853,4]
[330710738,1719721846850,-306.26,0.00020855,2]
[330710739,1719721846861,-150.0,0.00020856,4]
[330710740,1719721846871,-460.08405914,0.0002087,4]
[330710741,1719721846882,-152.87389622,0.0002087,4]
[330710742,1719721846892,-199.49989626,0.0002087,4]
[330710743,1719721846902,-2189.43789162,0.00020892,2]
[330710744,1719721846913,-460.08405914,0.00020893,4]
[330710745,1719721846924,-152.87389622,0.00020893,4]
[330710746,1719721846934,-199.49989626,0.00020893,4]
[330710747,1719721846944,-165755.279266,0.000209,3]
[330710748,1719721846954,-460.08405914,0.00020916,4]
[330710749,1719721846964,-152.87389622,0.00020916,4]
[330710750,1719721846975,-199.49989626,0.00020916,4]
[330710751,1719721846985,-150.0,0.00020925,4]
[330710752,1719721846995,-460.08405914,0.00020939,4]
[330710753,1719721847006,-152.87389622,0.00020939,4]
[330710754,1719721847016,-199.49989626,0.00020939,4]
[330710755,1719721847026,-460.08405914,0.00020962,4]
[330710756,1719721847037,-152.87389622,0.00020962,4]
[330710757,1719721847047,-199.49989626,0.00020962,4]
[330710758,1719721847057,-150.0,0.00020965,4]
[330710759,1719721847067,-150.0,0.00020965,4]
[330710760,1719721847078,-460.08405914,0.00020985,4]
[330710761,1719721847087,-152.87389622,0.00020985,4]
[330710762,1719721847098,-199.49989626,0.00020985,4]
[330710763,1719721847108,-150.0,0.00020996,4]
[330710764,1719721847118,-155.0,0.00021,2]
[330710765,1719721847128,-12760.47924032,0.00021,3]
[330710766,1719721847137,-748.0,0.00021,9]
[330710767,1719721847147,-203.02303,0.00021,2]
[330710768,1719721847156,-1250.0,0.00021,2]
[330710769,1719721847166,-460.08405914,0.00021009,4]
[330710770,1719721847175,-152.87389622,0.00021009,4]
[330710771,1719721847185,-199.49989626,0.00021009,4]
[330710772,1719721847195,-460.08405914,0.00021032,4]
[330710773,1719721847206,-152.87389622,0.00021032,4]
[330710774,1719721847215,-199.49989626,0.00021032,4]
[330710775,1719721847226,-460.08405914,0.00021055,4]
[330710776,1719721847237,-152.87389622,0.00021055,4]
[330710777,1719721847247,-199.49989626,0.00021055,4]
[330710778,1719721847258,-150.0,0.00021068,4]
[330710779,1719721847268,-50000.0,0.0002107,2]
[330710780,1719721847279,-151.0,0.0002107,2]
[330710781,1719721847289,-150.0,0.00021075,4]
[330710782,1719721847299,-460.08405914,0.00021078,4]
[330710783,1719721847311,-152.87389622,0.00021078,4]
[330710784,1719721847325,-199.49989626,0.00021078,4]
[330710785,1719721847336,-2000.0,0.000211,2]
[330710786,1719721847346,-181908.15725615,0.000211,2]
[330710787,1719721847357,-191.0,0.000211,3]
[330710788,1719721847368,-460.08405914,0.00021101,4]
[330710789,1719721847379,-152.87389622,0.00021101,4]
[330710790,1719721847391,-199.49989626,0.00021101,4]
[330710791,1719721847402,-460.08405914,0.00021124,4]
[330710792,1719721847412,-152.87389622,0.00021124,4]
[330710793,1719721847423,-199.49989626,0.00021124,4]
[330710794,1719721847434,-150.0,0.0002114,4]
[330710795,1719721847445,-460.08405914,0.00021147,4]
[330710796,1719721847456,-152.87389622,0.00021147,4]
[330710797,1719721847466,-199.49989626,0.00021147,4]
[330710798,1719721847477,-460.08405914,0.00021171,4]
[330710799,1719721847487,-152.87389622,0.00021171,4]
[330710800,1719721847497,-199.49989626,0.00021171,4]
[330710801,1719721847507,-150.0,0.00021184,4]
[330710802,1719721847517,-460.08405914,0.00021194,4]
[330710803,1719721847527,-152.87389622,0.00021194,4]
[330710804,1719721847537,-199.49989626,0.00021194,4]
[330710805,1719721847547,-150.0,0.00021197,2]
[330710806,1719721847557,-150.0,0.00021211,4]
[330710807,1719721847567,-150.0,0.00021211,4]
[330710808,1719721847576,-460.08405914,0.00021217,4]
[330710809,1719721847587,-152.87389622,0.00021217,4]
[330710810,1719721847597,-199.49989626,0.00021217,4]
[330710811,1719721847608,-460.08405914,0.0002124,4]
[330710812,1719721847618,-152.87389622,0.0002124,4]
[330710813,1719721847628,-199.49989626,0.0002124,4]
[330710814,1719721847638,-460.08405914,0.00021263,4]
[330710815,1719721847648,-152.87389622,0.00021263,4]
[330710816,1719721847658,-199.49989626,0.00021263,4]
[330710817,1719721847669,-150.0,0.00021283,4]
[330710818,1719721847679,-460.08405914,0.00021286,4]
[330710819,1719721847689,-152.87389622,0.00021286,4]
[330710820,1719721847698,-199.49989626,0.00021286,4]
[330710821,1719721847708,-150.0,0.00021293,4]
[330710822,1719721847717,-150.0,0.00021293,4]
[330710823,1719721847727,-460.08405914,0.0002131,4]
[330710824,1719721847737,-152.87389622,0.0002131,4]
[330710825,1719721847747,-199.49989626,0.0002131,4]
[330710826,1719721847758,-460.08405914,0.00021333,4]
[330710827,1719721847768,-152.87389622,0.00021333,4]
[330710828,1719721847778,-199.49989626,0.00021333,4]
[330710829,1719721847788,-300.93,0.00021342,2]
[330710830,1719721847798,-150.0,0.00021354,4]
[330710831,1719721847809,-460.08405914,0.00021356,4]
[330710832,1719721847820,-152.87389622,0.00021356,4]
[330710833,1719721847830,-199.49989626,0.00021356,4]
[330710834,1719721847841,-997.1,0.00021365,2]
[330710835,1719721847851,-29928.22,0.0002137,2]
[330710836,1719721847861,-460.08405914,0.00021379,4]
[330710837,1719721847871,-152.87389622,0.00021379,4]
[330710838,1719721847881,-199.49989626,0.00021379,4]
[330710839,1719721847891,-460.08405914,0.00021402,4]
[330710840,1719721847900,-152.87389622,0.00021402,4]
[330710841,1719721847910,-199.49989626,0.00021402,4]
[330710842,1719721847920,-150.0,0.00021402,4]
[330710843,1719721847930,-460.08405914,0.00021425,4]
[330710844,1719721847940,-152.87389622,0.00021425,4]
[330710845,1719721847950,-199.49989626,0.00021425,4]
[330710846,1719721847960,-150.0,0.00021426,4]
[330710847,1719721847971,-1019.52907429,0.00021437,2]
[330710848,1719721847981,-460.08405914,0.00021449,4]
[330710849,1719721847991,-152.87389622,0.00021449,4]
[330710850,1719721848001,-199.49989626,0.00021449,4]
[330710851,1719721848012,-997.1,0.00021465,2]
[330710852,1719721848022,-460.08405914,0.00021472,4]
[330710853,1719721848032,-152.87389622,0.00021472,4]
[330710854,1719721848042,-199.49989626,0.00021472,4]
[330710855,1719721848053,-460.08405914,0.00021495,4]
[330710856,1719721848063,-152.87389622,0.00021495,4]
[330710857,1719721848073,-199.49989626,0.00021495,4]
[330710858,1719721848085,-150.0,0.00021498,4]
[330710859,1719721848096,-748.0,0.000215,9]
[330710860,1719721848106,-150.0,0.00021511,4]
[330710861,1719721848116,-460.08405914,0.00021518,4]
[330710862,1719721848126,-152.87389622,0.00021518,4]
[330710863,1719721848137,-199.49989626,0.00021518,4]
[330710864,1719721848147,-460.08405914,0.00021541,4]
[330710865,1719721848157,-152.87389622,0.00021541,4]
[330710866,1719721848167,-199.49989626,0.00021541,4]
[330710867,1719721848177,-460.08405914,0.00021564,4]
[330710868,1719721848187,-152.87389622,0.00021564,4]
[330710869,1719721848198,-199.49989626,0.00021564,4]
[330710870,1719721848208,-150.0,0.00021569,4]
[330710871,1719721848221,-460.08405914,0.00021588,4]
[330710872,1719721848232,-152.87389622,0.00021588,4]
[330710873,1719721848242,-199.49989626,0.00021588,4]
[330710874,1719721848254,-203.82456511,0.00021606,2]
[330710875,1719721848265,-460.08405914,0.00021611,4]
[330710876,1719721848276,-152.87389622,0.00021611,4]
[330710877,1719721848286,-199.49989626,0.00021611,4]
[330710878,1719721848296,-150.0,0.00021621,4]
[330710879,1719721848306,-150.0,0.00021621,4]
[330710880,1719721848320,-460.08405914,0.00021634,4]
[330710881,1719721848332,-152.87389622,0.00021634,4]
[330710882,1719721848341,-199.49989626,0.00021634,4]
[330710883,1719721848352,-150.0,0.00021641,4]
[330710884,1719721848363,-174.17,0.00021644,2]
[330710885,1719721848372,-166.54,0.00021644,2]
[330710886,1719721848382,-182.02,0.00021644,2]
[330710887,1719721848392,-893.9,0.00021644,2]
[330710888,1719721848402,-199.59,0.00021644,2]
[330710889,1719721848412,-460.08405914,0.00021657,4]
[330710890,1719721848421,-152.87389622,0.00021657,4]
[330710891,1719721848431,-199.49989626,0.00021657,4]
[330710892,1719721848441,-460.08405914,0.0002168,4]
[330710893,1719721848450,-152.87389622,0.0002168,4]
[330710894,1719721848460,-199.49989626,0.0002168,4]
[330710895,1719721848475,-150.0,0.00021702,2]
[330710896,1719721848485,-460.08405914,0.00021703,4]
[330710897,1719721848495,-152.87389622,0.00021703,4]
[330710898,1719721848505,-199.49989626,0.00021703,4]
[330710899,1719721848517,-306.26,0.0002171,2]
[330710900,1719721848527,-150.0,0.00021713,4]
[330710901,1719721848537,-460.08405914,0.00021727,4]
[330710902,1719721848546,-152.87389622,0.00021727,4]
[330710903,1719721848556,-199.49989626,0.00021727,4]
[330710904,1719721848566,-150.0,0.0002173,4]
[330710905,1719721848575,-460.08405914,0.0002175,4]
[330710906,1719721848585,-152.87389622,0.0002175,4]
[330710907,1719721848594,-199.49989626,0.0002175,4]
[330710908,1719721848604,-460.08405914,0.00021773,4]
[330710909,1719721848613,-152.87389622,0.00021773,4]
[330710910,1719721848623,-199.49989626,0.00021773,4]
[330710911,1719721848632,-197.0,0.0002178,3]
[330710912,1719721848642,-150.0,0.00021784,4]
[330710913,1719721848652,-150.0,0.00021784,4]
[330710914,1719721848661,-150.0,0.00021784,4]
[330710915,1719721848671,-460.08405914,0.00021796,4]
[330710916,1719721848681,-152.87389622,0.00021796,4]
[330710917,1719721848690,-199.49989626,0.00021796,4]
[330710918,1719721848700,-800.0,0.00021808,2]
[330710919,1719721848710,-460.08405914,0.00021819,4]
[330710920,1719721848722,-152.87389622,0.00021819,4]
[330710921,1719721848732,-199.49989626,0.00021819,4]
[330710922,1719721848741,-150.0,0.00021839,4]
[330710923,1719721848755,-500.0,0.00021839,2]
[330710924,1719721848764,-200.0,0.00021839,2]
[330710925,1719721848774,-460.08405914,0.00021842,4]
[330710926,1719721848783,-152.87389622,0.00021842,4]
[330710927,1719721848793,-199.49989626,0.00021842,4]
[330710928,1719721848802,-6276.62953969,0.00021844,2]
[330710929,1719721848812,-150.0,0.00021856,4]
[330710930,1719721848822,-460.08405914,0.00021866,4]
[330710931,1719721848836,-152.87389622,0.00021866,4]
[330710932,1719721848846,-199.49989626,0.00021866,4]
[330710933,1719721848855,-1288.01621888,0.00021888,2]
[330710934,1719721848865,-460.08405914,0.00021889,4]
[330710935,1719721848874,-152.87389622,0.00021889,4]
[330710936,1719721848884,-199.49989626,0.00021889,4]
[330710937,1719721848894,-2018.08606373,0.00021891,2]
[330710938,1719721848903,-2189.43789162,0.00021891,2]
[330710939,1719721848913,-867.43227348,0.00021898,2]
[330710940,1719721848923,-155.23601676,0.000219,2]
[330710941,1719721848933,-155.0,0.00021906,2]
[330710942,1719721848942,-460.08405914,0.00021912,4]
[330710943,1719721848951,-152.87389622,0.00021912,4]
[330710944,1719721848961,-199.49989626,0.00021912,4]
[330710945,1719721848977,-460.69,0.00021918,2]
[330710946,1719721848986,-337.88,0.00021918,2]
[330710947,1719721848996,-1791.11,0.00021918,2]
[330710948,1719721849006,-500.0,0.00021918,2]
[330710949,1719721849015,-500.0,0.00021918,2]
[330710950,1719721849025,-500.0,0.00021918,2]
[330710951,1719721849034,-500.0,0.00021918,2]
[330710952,1719721849044,-500.0,0.00021918,2]
[330710953,1719721849053,-500.0,0.00021918,2]
[330710954,1719721849063,-188.14281244,0.00021919,2]
[330710955,1719721849072,-155.16770843,0.00021919,2]
[330710956,1719721849081,-155.16770843,0.00021919,2]
[330710957,1719721849497,-150.0,0.00021928,4]
[330710958,1719721849516,-460.08405914,0.00021935,4]
[330710959,1719721849533,-152.87389622,0.00021935,4]
[330710960,1719721849546,-199.49989626,0.00021935,4]
[330710961,1719721849555,-150.0,0.00021948,4]
[330710962,1719721849565,-150.0,0.00021948,4]
[330710963,1719721849575,-460.08405914,0.00021958,4]
[330710964,1719721849585,-152.87389622,0.00021958,4]
[330710965,1719721849594,-199.49989626,0.00021958,4]
[330710966,1719721849603,-460.08405914,0.00021981,4]
[330710967,1719721849613,-152.87389622,0.00021981,4]
[330710968,1719721849622,-199.49989626,0.00021981,4]
[330710969,1719721849632,-1138.98362609,0.00021986,2]
[330710970,1719721849642,-150.0,0.00021999,4]
[330710971,1719721849651,-3178.5002161,0.00022,2]
[330710972,1719721849661,-250000.0,0.00022,2]
[330710973,1719721849671,-367.51544932,0.00022,2]
[330710974,1719721849680,-169430.95193802,0.00022,4]
[330710975,1719721849836,-822.66,0.00022,4]
[330710976,1719721849984,-500.0,0.00019793,2]
[330710977,1719721849994,-500.0,0.00019793,2]
[330710978,1719721850003,-500.0,0.00019793,2]
[330710979,1719721850013,-500.0,0.00019793,2]
[330710980,1719721850022,-500.0,0.00019793,2]
[330710981,1719721850033,-500.0,0.00019793,2]
[330710982,1719721850044,-727.93915642,0.0002,2]
[330710983,1719721850053,-2479.76864391,0.00020892,2]
[330710984,1719721850072,-500.0,0.00019793,2]
[330710985,1719721850083,-1139.6528782,0.00020892,2]
[330710987,1719721869309,239.5842,0.00011098,2]
[330710988,1719721892071,296.51002235,0.00013999,3]
[330710989,1719721892238,357.07,0.00013999,3]
[330710990,1719721903942,277.3397,0.00011097,2]
[330710991,1719721936812,500.0,0.00013999,3]
[330710992,1719721937089,392.2999964,0.00014109,3]
[330710993,1719721952305,641.53971043,0.00011097,2]
[330710995,1719722008790,150.0,0.00011142,2]
[330710996,1719722014846,5597.5405427,0.00011098,2]
[330710997,1719722039294,641.53971043,0.00011097,2]
[330710998,1719722067058,500.0,0.00013999,3]
[330710999,1719722067612,500.0,0.00014109,3]
[330711000,1719722068118,500.0,0.00014218,3]
[330711001,1719722069163,500.0,0.00014328,3]
[330711002,1719722070039,500.0,0.00014438,3]
[330711003,1719722071789,500.0,0.00014547,3]
[330711004,1719722072741,500.0,0.00014657,3]
[330711005,1719722073606,575.77,0.00014766,3]
[330711006,1719722081750,660.33561149,0.00011098,2]
[330711007,1719722099575,500.0,0.00013999,3]
[330711008,1719722100093,500.0,0.00014109,3]
[330711009,1719722102306,500.0,0.00014218,3]
[330711010,1719722103610,500.0,0.00014328,3]
[330711011,1719722105349,2005.25738355,0.00011098,2]
[330711012,1719722105528,500.0,0.00014438,3]
[330711013,1719722106432,325.3,0.00014547,3]
[330711014,1719722111915,690.47819463,0.00011098,2]
[330711015,1719722116353,500.0,0.00013999,3]
[330711016,1719722116895,500.0,0.00014109,3]
[330711017,1719722117410,500.0,0.00014218,3]
[330711018,1719722117828,500.0,0.00014328,3]
[330711019,1719722118679,500.0,0.00014438,3]
[330711020,1719722120334,405.61656581,0.00014547,3]
[330711021,1719722130158,503.21479822,0.00013999,3]
[330711022,1719722132772,506.61043631,0.00013999,3]
[330711023,1719722135458,500.0,0.00013999,3]
[330711024,1719722135727,500.0,0.00014109,3]
[330711025,1719722136005,592.4,0.00014218,3]
[330711026,1719722138238,500.0,0.00013999,3]
[330711027,1719722138513,269.03,0.00014109,3]
[330711028,1719722141646,500.0,0.00013999,3]
[330711029,1719722141939,229.64,0.00014109,3]
[330711030,1719722142521,520.2267587,0.00011098,2]
[330711031,1719722143608,968.31897619,0.00011098,2]
[330711032,1719722147305,641.53971043,0.00011098,2]
[330711033,1719722149251,511.88553714,0.00013999,3]
[330711034,1719722156997,500.0,0.00013999,3]
[330711035,1719722157265,500.0,0.00014109,3]
[330711036,1719722157544,425.4,0.00014218,3]
[330711037,1719722177303,641.53971043,0.00011098,2]
[330711038,1719722194504,475.16082276,0.00011098,2]
[330711039,1719722195811,176.45216287,0.00011098,2]
[330711040,1719722197605,500.0,0.00013999,3]
[330711041,1719722197807,155.361731,0.00011098,2]
[330711042,1719722197904,500.0,0.00014109,3]
[330711043,1719722198168,500.0,0.00014218,3]
[330711044,1719722198612,495.13,0.00014328,3]
[330711045,1719722203124,500.0,0.00013999,3]
[330711046,1719722203402,500.0,0.00014109,3]
[330711047,1719722203653,411.29,0.00014218,3]
[330711048,1719722217438,505.92255878,0.00013999,3]
[330711049,1719722228336,156.20697954,0.00011098,2]
[330711050,1719722229034,504.15457296,0.00013999,3]
[330711051,1719722240646,500.0,0.00013999,3]
[330711052,1719722240983,169.8,0.00014109,3]
[330711053,1719722248814,1156.0,0.00026,120]
[330711054,1719722288672,1628.98358933,0.00011098,2]
[330711055,1719722304283,504.03031429,0.00013999,3]
[330711056,1719722319521,420.40315994,0.00013999,3]
[330711057,1719722319619,500.0,0.00013999,3]
[330711058,1719722319882,500.0,0.00014109,3]
[330711059,1719722320208,359.55,0.00014218,3]
[330711060,1719722321705,500.0,0.00013999,3]
[330711061,1719722321982,500.0,0.00014109,3]
[330711062,1719722322259,500.0,0.00014218,3]
[330711063,1719722322337,500.0,0.00013999,3]
[330711064,1719722322560,299.21,0.00014328,3]
[330711065,1719722322631,648.3,0.00014109,3]
[330711066,1719722324800,502.64502212,0.00013999,3]
[330711067,1719722327230,502.11029772,0.00013999,3]
[330711068,1719722327506,514.64824626,0.00013999,3]
[330711069,1719722329969,500.0,0.00013999,3]
[330711070,1719722330251,500.0,0.00014109,3]
[330711071,1719722330535,500.0,0.00014218,3]
[330711072,1719722330825,277.22,0.00014328,3]
[330711073,1719722331244,500.0,0.00013999,3]
[330711074,1719722331555,500.0,0.00014109,3]
[330711075,1719722331839,500.0,0.00014218,3]
[330711076,1719722332127,500.0,0.00014328,3]
[330711077,1719722332743,285.12,0.00014438,3]
[330711078,1719722337812,500.0,0.00013999,3]
[330711079,1719722338096,500.0,0.00014109,3]
[330711080,1719722338366,500.0,0.00014218,3]
[330711081,1719722338642,500.0,0.00014328,3]
[330711082,1719722338673,505.26142491,0.00013999,3]
[330711083,1719722338903,500.0,0.00014438,3]
[330711084,1719722339212,225.38,0.00014547,3]
[330711085,1719722342995,500.0,0.00013999,3]
[330711086,1719722343594,228.30418292,0.00014109,3]
[330711087,1719722343681,500.0,0.00013999,3]
[330711088,1719722343959,500.0,0.00014109,3]
[330711089,1719722344230,500.0,0.00014218,3]
[330711090,1719722344492,500.0,0.00014328,3]
[330711091,1719722344782,377.29,0.00014438,3]
[330711096,1719722372979,235.81229336,0.00011098,2]
[330711097,1719722386421,155.68805516,0.00011098,2]
[330711103,1719722447901,641.53971043,0.00011098,2]
[330711105,1719722498773,500.0,0.00013999,3]
[330711106,1719722499065,609.70714089,0.00014109,3]
[330711109,1719722531904,641.53971043,0.00011098,2]
[330711110,1719722546906,641.53971043,0.00011098,2]
[330711112,1719722672974,641.53971043,0.00011098,2]
[330711113,1719722768933,641.53971043,0.00011098,2]
[330711114,1719722869556,500.0,0.00013999,3]
[330711115,1719722869817,202.76680444,0.00014109,3]
[330711116,1719722881941,564.721456,0.00011098,2]
[330711130,1719723032548,-758.2443887,0.0001251,2]
[330711131,1719723032559,-153.1084911,0.00013,2]
[330711132,1719723032568,-9690.2419,0.00013352,2]
[330711133,1719723032578,-4575.7487027,0.00013452,2]
[330711134,1719723032589,-6562.36062436,0.00013452,2]
[330711135,1719723032599,-313.27354079,0.00013452,2]
[330711136,1719723032608,-563.37,0.00013762,2]
[330711137,1719723032618,-300.0,0.00013899,2]
[330711138,1719723032627,-3400.4621,0.000139,2]
[330711139,1719723032637,-3661.72575157,0.000139,2]
[330711140,1719723032646,-3769.56398328,0.000139,2]
[330711141,1719723032657,-1156.61401672,0.000139,2]
[330711142,1719723032715,-11880.80690328,0.000139,2]
[330711143,1719723032727,-5892.7144032,0.000139,2]
[330711144,1719723032738,-16864.68024115,0.000139,2]
[330711145,1719723032751,-4265.1967325,0.000139,2]
[330711146,1719723032772,-6385.75602073,0.000139,2]
[330711147,1719723032783,-889.15149544,0.000139,2]
[330711148,1719723032795,-3821.6942037,0.000139,2]
[330711149,1719723032808,-206.7245,0.000139,2]
[330711150,1719723032818,-179.2835893,0.00013973,2]
[330711151,1719723032827,-1370.23586857,0.00013973,2]
[330711152,1719723032837,-27435.59003032,0.00013978,2]
[330711153,1719723032846,-203.82456511,0.00013978,2]
[330711154,1719723032856,-13292.02913309,0.00013978,2]
[330711155,1719723032866,-320.40261744,0.00013978,2]
[330711156,1719723032875,-163.18875851,0.0001399,2]
[330711157,1719723032885,-1052.67057692,0.00013997,2]
[330711158,1719723032894,-32273.57409723,0.00013998,2]
[330711159,1719723032903,-151.81272977,0.00013999,2]
[330711160,1719723032912,-424.19723288,0.00014,2]
[330711161,1719723032922,-287134.26639523,0.00014,2]
[330711162,1719723032937,-286886.23902432,0.00014,2]
[330711163,1719723032948,-442.6082688,0.00014,2]
[330711165,1719723032961,-493.2638065,0.00014,2]
[330711167,1719723032973,-14758.376858,0.00014,2]
[330711168,1719723032984,-450.037073,0.00014,2]
[330711175,1719723038025,-1259.0183075,0.00014,2]
[330711176,1719723038051,-1717.2,0.00014,2]
[330711177,1719723038294,-333049.9620924,0.00014,2]
[330711178,1719723038320,-3121.61111413,0.00014,2]
[330711367,1719723040191,-462.84319838,0.00014,2]
[330711382,1719723040315,-74536.41090497,0.00014,2]
[330711384,1719723040326,-573.27624306,0.00014,2]
[330711387,1719723040346,-1292.76814614,0.00014,2]
[330711389,1719723040357,-43963.15270638,0.00014,2]
[330711393,1719723040378,-11505.8443114,0.00014,2]
[330711397,1719723040411,-555.29,0.00014,2]
[330711411,1719723040526,-449.68867875,0.00014,2]
[330711413,1719723040538,-575.91742826,0.00014,2]
[330711415,1719723040550,-332.98441238,0.00014,2]
[330711417,1719723040562,-40713.03440521,0.00014,2]
[330711688,1719723043136,-1753.95735098,0.00014,2]
[330711690,1719723043148,-664.12806585,0.00014,2]
[330711693,1719723043161,-790.18897835,0.00014,2]
[330711695,1719723043172,-24549.31977664,0.00014,2]
[330711697,1719723043187,-306.76746759,0.00014,2]
[330711701,1719723043216,-2800.13776217,0.00014,2]
[330711704,1719723043231,-3799.999993,0.00014,2]
[330711706,1719723043242,-2743.43994,0.00014,2]
[330711707,1719723043262,-1144.36375668,0.00014,2]
[330711709,1719723043275,-489.29187735,0.00014,2]
[330711711,1719723043287,-4377.57970572,0.00014,2]